[Event "7th Leer Open-A 2024"]
[Site "Leer"]
[Date "2024.10.31"]
[Round "2.44"]
[White "Schnelting, Michael"]
[Black "Dorr, Joerg"]
[Result "1-0"]
[ECO "A14"]
[WhiteElo "2003"]
[BlackElo "1865"]
[Annotator "RC"]
[PlyCount "128"]
[EventDate "2024.10.14"]
[EventType "swiss"]
[EventCountry "GER"]
[SourceTitle "playchess.com"]
[Source "ChessBase"]
[SourceQuality "1"]
[TimeControl "40/5400+30:900+30"]

1. Nf3 {[%emt 0:01:36]} d5 {[%emt 0:00:24]} 2. c4 {[%emt 0:00:17]} c6 {[%emt 0:00:52]} 3. g3 {[%emt 0:00:16]} Nf6 {[%emt 0:01:46]} 4. Bg2 {[%emt 0:00:12]} e6 {[%emt 0:00:16]} 5. O-O {[%emt 0:00:23]} Be7 {[%emt 0:02:57]} 6. b3 {[%emt 0:00:50]} Nbd7 {[%emt 0:02:00]} 7. Bb2 {[%emt 0:00:15]} O-O {[%emt 0:00:11]} 8. Qc2 {[%emt 0:00:25]} Re8 {[%emt 0:11:00]} 9. Nc3 {[%emt 0:05:12]} dxc4 {[%emt 0:02:55]} 10. bxc4 {[%emt 0:01:13]} e5 {[%emt 0:00:05]} 11. Rab1 {[%emt 0:03:51]} Bf8 {[%emt 0:03:12]} 12. d3 {[%emt 0:00:53]} Nc5 {[%emt 0:06:16]} 13. Nd2 {[%emt 0:14:03]} Nfd7 {[%emt 0:03:23]} 14. e3 {[%emt 0:09:05]} Ne6 {[%emt 0:06:50]} 15. Nb3 {[%emt 0:08:53]} Ndc5 {[%emt 0:14:32]} 16. Rfd1 {[%emt 0:00:59]} Nxb3 {[%emt 0:04:03]} 17. axb3 {[%emt 0:00:57]} Qg5 {[%emt 0:03:23]} 18. d4 {[%emt 0:10:43]} exd4 {[%emt 0:01:30]} 19. exd4 {[%emt 0:00:14]} Nc7 {[%emt 0:03:05]} 20. Qd2 {[%emt 0:05:57]} Qg6 {[%emt 0:07:15]} 21. Na4 {[%emt 0:08:04]} Bf5 {[%emt 0:00:47]} 22. Rbc1 {[%emt 0:02:04]} Na6 {[%emt 0:00:49]} 23. Re1 {[%emt 0:04:57]} Rxe1+ {[%emt 0:03:53]} 24. Rxe1 {[%emt 0:01:40]} Rd8 {[%emt 0:00:58]} 25. Qa5 {[%emt 0:04:34]} Qf6 {[%emt 0:07:55]} 26. d5 {[%emt 0:04:39]} Bb4 {[%emt 0:00:02]} 27. Bxf6 {[%emt 0:01:32]} Bxa5 {[%emt 0:00:01]} 28. Bxd8 {[%emt 0:00:18]} Bxe1 {[%emt 0:00:01]} 29. dxc6 {[%emt 0:01:56]} bxc6 {[%emt 0:00:01]} 30. Bxc6 {[%emt 0:00:56]} Bc2 {[%emt 0:00:11]} 31. Bb5 {[%emt 0:02:24]} Bxb3 {[%emt 0:00:15]} 32. Bxa6 {[%emt 0:01:40]} Bxa4 {[%emt 0:00:02]} 33. Be7 {[%emt 0:00:53]} Ba5 {[%emt 0:01:11]} 34. Bb7 {[%emt 0:01:16]} Bb3 {[%emt 0:04:31]} 35. c5 {[%emt 0:03:55]} Bb4 {[%emt 0:03:35]} 36. Ba6 {[%emt 0:00:02]} Bd5 {[%emt 0:02:06]} 37. Kf1 {[%emt 0:00:12]} f6 {[%emt 0:00:35]} 38. Ke2 {[%emt 0:00:56]} Kf7 {[%emt 0:00:07]} 39. Bd6 {[%emt 0:00:06]} Ke6 {[%emt 0:02:15]} 40. Bc8+ {[%emt 0:00:55]} Kf7 {[%emt 0:00:36]} 41. Ba6 {[%emt 0:04:47]} Bc6 {[%emt 0:02:45]} 42. Kd3 {[%emt 0:01:39]} Ke8 {[%emt 0:03:17]} 43. f4 {[%emt 0:02:08]} Kd7 {[%emt 0:05:19]} 44. Kc4 {[%emt 0:01:58]} Ba3 {[%emt 0:01:56]} 45. Kb3 {[%emt 0:02:24]} Bc1 {[%emt 0:00:42]} 46. Bb8 {[%emt 0:00:05]} Be3 {[%emt 0:00:46]} 47. Bxa7 {[%emt 0:06:46]} Bg1 {[%emt 0:00:02]} 48. h3 {[%emt 0:00:00]} Bh2 {[%emt 0:00:02]} 49. Bd3 {[%emt 0:00:00]} Bxg3 {[%emt 0:00:51]} 50. Bxh7 {[%emt 0:00:00]} Bxf4 {[%emt 0:00:19]} 51. Bf5+ {[%emt 0:00:00]} Ke7 {[%emt 0:04:23]} 52. Kc4 {[%emt 0:00:00]} Bd7 {[%emt 0:00:47]} 53. Bxd7 {[%emt 0:00:00]} Kxd7 {[%emt 0:00:01]} 54. Kd5 {[%emt 0:00:10]} g5 {[%emt 0:00:42]} 55. Bb6 {[%emt 0:00:11]} Bb8 {[%emt 0:02:29]} 56. c6+ {[%emt 0:00:44]} Kc8 {[%emt 0:00:06]} 57. Ke6 {[%emt 0:01:27]} Be5 {[%emt 0:00:10]} 58. Ba5 {[%emt 0:00:40]} Bb2 {[%emt 0:00:49]} 59. Bb4 {[%emt 0:01:24]} Ba1 {[%emt 0:02:00]} 60. Be7 {[%emt 0:00:19]} Kc7 {[%emt 0:00:53]} 61. Bxf6 {[%emt 0:00:10]} Bxf6 {[%emt 0:00:08]} 62. Kxf6 {[%emt 0:00:04]} Kxc6 {[%emt 0:00:17]} 63. Kxg5 {[%emt 0:00:05]} Kd6 {[%emt 0:01:09]} 64. Kf6 {[%emt 0:00:13]} Kd5 {[%emt 0:01:51]} 1-0

[Event "7th Leer Open-A 2024"]
[Site "Leer"]
[Date "2024.10.31"]
[Round "2.46"]
[White "Langedijk, Ardjan"]
[Black "Engelmann, Chris"]
[Result "1-0"]
[ECO "C35"]
[WhiteElo "2000"]
[BlackElo "1861"]
[Annotator "RC"]
[PlyCount "47"]
[EventDate "2024.10.14"]
[EventType "swiss"]
[EventCountry "GER"]
[SourceTitle "playchess.com"]
[Source "ChessBase"]
[SourceQuality "1"]
[TimeControl "40/5400+30:900+30"]

1. e4 {[%emt 0:00:41]} e5 {[%emt 0:00:23]} 2. f4 {[%emt 0:00:41]} d6 {[%emt 0:02:01]} 3. Nf3 {[%emt 0:03:42]} Be7 {[%emt 0:15:17]} 4. Nc3 {[%emt 0:02:01]} exf4 {[%emt 0:04:42]} 5. d4 {[%emt 0:08:37]} Bh4+ {[%emt 0:06:34]} 6. Ke2 {[%emt 0:00:54]} Nc6 {[%emt 0:03:05]} 7. Bxf4 {[%emt 0:03:25]} Bg4 {[%emt 0:02:55]} 8. Qd3 {[%emt 0:07:27]} a6 {[%emt 0:12:24]} 9. Kd2 {[%emt 0:12:36]} Be7 {[%emt 0:12:02]} 10. Re1 {[%emt 0:09:30]} Qd7 {[%emt 0:04:03]} 11. Kc1 {[%emt 0:01:00]} O-O-O {[%emt 0:01:54]} 12. d5 {[%emt 0:03:30]} Nb8 {[%emt 0:02:05]} 13. Qc4 {[%emt 0:06:17]} Re8 {[%emt 0:03:26]} 14. Bd3 {[%emt 0:08:03]} Qd8 {[%emt 0:02:23]} 15. Kb1 {[%emt 0:01:30]} Nd7 {[%emt 0:00:18]} 16. e5 {[%emt 0:03:28]} Nb6 {[%emt 0:07:53]} 17. Qb3 {[%emt 0:01:13]} Bxf3 {[%emt 0:01:47]} 18. exd6 {[%emt 0:04:53]} Bxd6 {[%emt 0:05:12]} 19. Rxe8 {[%emt 0:05:10]} Qxe8 {[%emt 0:00:05]} 20. Bxd6 {[%emt 0:00:52]} Bxg2 {[%emt 0:05:05]} 21. Bf5+ {[%emt 0:02:14]} Kb8 {[%emt 0:01:54]} 22. Rg1 {[%emt 0:02:52]} Qe3 {[%emt 0:00:29]} 23. Bxc7+ {[%emt 0:00:21]} Kxc7 {[%emt 0:00:16]} 24. Nb5+ {[%emt 0:00:15]} 1-0

[Event "7th Leer Open-A 2024"]
[Site "Leer"]
[Date "2024.10.31"]
[Round "2.47"]
[White "Wecke, Thoralf"]
[Black "Wolf, Pablo"]
[Result "0-1"]
[ECO "D00"]
[WhiteElo "1867"]
[BlackElo "2000"]
[Annotator "RC"]
[PlyCount "80"]
[EventDate "2024.10.14"]
[EventType "swiss"]
[EventCountry "GER"]
[SourceTitle "playchess.com"]
[Source "ChessBase"]
[SourceQuality "1"]
[TimeControl "40/5400+30:900+30"]

1. d4 {[%emt 0:01:00]} d5 {[%emt 0:00:06]} 2. Bg5 {[%emt 0:00:06]} Nf6 {[%emt 0:04:01]} 3. Bxf6 {[%emt 0:01:14]} exf6 {[%emt 0:00:10]} 4. e3 {[%emt 0:00:15]} Bd6 {[%emt 0:00:27]} 5. c4 {[%emt 0:00:48]} dxc4 {[%emt 0:04:31]} 6. Bxc4 {[%emt 0:00:28]} Bf5 {[%emt 0:00:33]} 7. Qb3 {[%emt 0:03:45]} O-O {[%emt 0:01:17]} 8. Nd2 {[%emt 0:16:29]} Nd7 {[%emt 0:04:42]} 9. Ngf3 {[%emt 0:00:35]} Nb6 {[%emt 0:00:55]} 10. Bd3 {[%emt 0:00:22]} Be6 {[%emt 0:01:13]} 11. Qc2 {[%emt 0:00:08]} h6 {[%emt 0:00:06]} 12. O-O {[%emt 0:01:19]} Nd5 {[%emt 0:07:39]} 13. a3 {[%emt 0:00:45]} Rc8 {[%emt 0:00:47]} 14. Ne4 {[%emt 0:03:09]} c6 {[%emt 0:10:27]} 15. Nxd6 {[%emt 0:02:04]} Qxd6 {[%emt 0:00:04]} 16. Rac1 {[%emt 0:01:09]} Rfd8 {[%emt 0:04:00]} 17. Bf5 {[%emt 0:13:09]} b6 {[%emt 0:03:04]} 18. Bxe6 {[%emt 0:08:39]} Qxe6 {[%emt 0:00:10]} 19. Rfd1 {[%emt 0:07:20]} c5 {[%emt 0:12:33]} 20. Qd3 {[%emt 0:07:45]} Ne7 {[%emt 0:15:44]} 21. Qb5 {[%emt 0:02:56]} Nf5 {[%emt 0:03:29]} 22. dxc5 {[%emt 0:02:08]} Rxd1+ {[%emt 0:00:11]} 23. Rxd1 {[%emt 0:00:06]} Rxc5 {[%emt 0:00:06]} 24. Qd3 {[%emt 0:00:27]} g6 {[%emt 0:01:08]} 25. g3 {[%emt 0:05:14]} Kg7 {[%emt 0:04:18]} 26. Nd4 {[%emt 0:01:48]} Nxd4 {[%emt 0:21:49]} 27. Qxd4 {[%emt 0:20:52]} Qb3 {[%emt 0:00:30]} 28. Rd3 {[%emt 0:00:30]} Rc1+ {[%emt 0:00:00]} 29. Kg2 {[%emt 0:00:00]} Qc2 {[%emt 0:00:00]} 30. Qc3 {[%emt 0:00:00]} Qb1 {[%emt 0:00:00]} 31. Qb3 {[%emt 0:00:00]} Rg1+ {[%emt 0:00:00]} 32. Kf3 {[%emt 0:02:00]} Rh1 {[%emt 0:02:30]} 33. e4 {[%emt 0:00:30]} Re1 {[%emt 0:00:30]} 34. Re3 {[%emt 0:00:00]} Rd1 {[%emt 0:00:30]} 35. Qc3 {[%emt 0:01:00]} Rc1 {[%emt 0:00:30]} 36. Qd4 {[%emt 0:00:30]} Rc2 {[%emt 0:00:00]} 37. e5 {[%emt 0:00:00]} Qh1+ {[%emt 0:01:00]} 38. Kg4 {[%emt 0:00:00]} f5+ {[%emt 0:00:00]} 39. Kh3 {[%emt 0:00:00]} Rxf2 {[%emt 0:00:00]} 40. e6+ {[%emt 0:00:00]} Kh7 {[%emt 0:00:00]} 0-1

[Event "7th Leer Open-A 2024"]
[Site "Leer"]
[Date "2024.10.31"]
[Round "2.48"]
[White "Noennig, Jakob"]
[Black "Wolf, Vincent"]
[Result "1-0"]
[ECO "B42"]
[WhiteElo "1986"]
[BlackElo "1754"]
[Annotator "RC"]
[PlyCount "107"]
[EventDate "2024.10.14"]
[EventType "swiss"]
[EventCountry "GER"]
[SourceTitle "playchess.com"]
[Source "ChessBase"]
[SourceQuality "1"]
[TimeControl "40/5400+30:900+30"]

1. e4 {[%emt 0:00:01]} c5 {[%emt 0:00:03]} 2. Nf3 {[%emt 0:00:10]} e6 {[%emt 0:00:03]} 3. d4 {[%emt 0:00:09]} cxd4 {[%emt 0:00:03]} 4. Nxd4 {[%emt 0:00:06]} Nf6 {[%emt 0:00:04]} 5. Bd3 {[%emt 0:07:03]} Nc6 {[%emt 0:00:07]} 6. Be3 {[%emt 1:26:01]} Qb6 {[%emt 0:11:08]} 7. Nb5 {[%emt 0:00:00]} Qd8 {[%emt 0:00:47]} 8. O-O {[%emt 0:00:00]} a6 {[%emt 0:00:18]} 9. Nd4 {[%emt 0:00:00]} d5 {[%emt 0:00:24]} 10. Nd2 {[%emt 0:00:00]} Be7 {[%emt 0:00:39]} 11. Nxc6 {[%emt 0:00:00]} bxc6 {[%emt 0:01:42]} 12. f4 {[%emt 0:00:00]} O-O {[%emt 0:01:34]} 13. e5 {[%emt 0:00:00]} Nd7 {[%emt 0:00:27]} 14. Qh5 {[%emt 0:00:00]} g6 {[%emt 0:02:27]} 15. Qh3 {[%emt 0:00:00]} Re8 {[%emt 0:00:13]} 16. Nf3 {[%emt 0:00:00]} c5 {[%emt 0:04:47]} 17. Rae1 {[%emt 0:00:00]} Bb7 {[%emt 0:04:17]} 18. Ng5 {[%emt 0:00:00]} Nf8 {[%emt 0:00:19]} 19. Qh6 {[%emt 0:00:00]} d4 {[%emt 0:01:24]} 20. Bd2 {[%emt 0:00:00]} Rc8 {[%emt 0:01:35]} 21. b3 {[%emt 0:00:21]} Rb8 {[%emt 0:02:42]} 22. g4 {[%emt 0:04:29]} Bxg5 {[%emt 0:10:00]} 23. fxg5 {[%emt 0:00:07]} Qc7 {[%emt 0:01:36]} 24. Rf6 {[%emt 0:02:17]} Re7 {[%emt 0:00:54]} 25. Bf4 {[%emt 0:01:38]} Rc8 {[%emt 0:05:00]} 26. h4 {[%emt 0:00:31]} Qd7 {[%emt 0:10:50]} 27. h5 {[%emt 0:00:11]} Rce8 {[%emt 0:04:40]} 28. Re2 {[%emt 0:00:21]} Qc6 {[%emt 0:02:22]} 29. hxg6 {[%emt 0:00:21]} fxg6 {[%emt 0:00:18]} 30. Bg3 {[%emt 0:00:42]} Rg7 {[%emt 0:01:09]} 31. Ref2 {[%emt 0:00:59]} Qd7 {[%emt 0:01:34]} 32. Qh3 {[%emt 0:00:29]} Qc6 {[%emt 0:00:50]} 33. R6f4 {[%emt 0:00:31]} Qd7 {[%emt 0:01:09]} 34. Qf1 {[%emt 0:00:16]} Qe7 {[%emt 0:02:41]} 35. Rf6 {[%emt 0:00:27]} Ra8 {[%emt 0:00:54]} 36. Bc4 {[%emt 0:00:25]} a5 {[%emt 0:01:05]} 37. Rxf8+ {[%emt 0:00:12]} Rxf8 {[%emt 0:00:32]} 38. Bxe6+ {[%emt 0:00:36]} Rgf7 {[%emt 0:00:39]} 39. Rxf7 {[%emt 0:00:26]} Rxf7 {[%emt 0:00:09]} 40. Qf6 {[%emt 0:00:09]} Qxf6 {[%emt 0:00:49]} 41. exf6 {[%emt 0:16:06]} Be4 {[%emt 0:15:56]} 42. Bd6 {[%emt 0:00:00]} Bxc2 {[%emt 0:00:00]} 43. Bxc5 {[%emt 0:00:00]} d3 {[%emt 0:00:00]} 44. Be3 {[%emt 0:00:00]} Kf8 {[%emt 0:00:00]} 45. Bxf7 {[%emt 0:00:00]} Kxf7 {[%emt 0:00:00]} 46. Bd2 {[%emt 0:00:00]} Bb1 {[%emt 0:00:00]} 47. a3 {[%emt 0:00:00]} Bc2 {[%emt 0:01:33]} 48. b4 {[%emt 0:00:00]} axb4 {[%emt 0:00:38]} 49. axb4 {[%emt 0:00:00]} Bd1 {[%emt 0:03:19]} 50. b5 {[%emt 0:00:00]} Bxg4 {[%emt 0:00:34]} 51. b6 {[%emt 0:00:00]} Bc8 {[%emt 0:00:38]} 52. Kf2 {[%emt 0:00:00]} h6 {[%emt 0:01:20]} 53. gxh6 {[%emt 0:00:00]} Kxf6 {[%emt 0:02:04]} 54. Bc3+ {[%emt 0:07:26]} 1-0

[Event "7th Leer Open-A 2024"]
[Site "Leer"]
[Date "2024.10.31"]
[Round "2.49"]
[White "Guetschow, Christian"]
[Black "Heutling, Elina"]
[Result "0-1"]
[ECO "B23"]
[WhiteElo "1861"]
[BlackElo "1983"]
[Annotator "RC"]
[PlyCount "36"]
[EventDate "2024.10.14"]
[EventType "swiss"]
[EventCountry "GER"]
[SourceTitle "playchess.com"]
[Source "ChessBase"]
[SourceQuality "1"]
[TimeControl "40/5400+30:900+30"]

1. Nc3 {[%emt 0:00:03]} c5 {[%emt 0:02:07]} 2. e4 {[%emt 0:00:05]} d6 {[%emt 0:00:09]} 3. Bb5+ {[%emt 0:00:40]} Bd7 {[%emt 0:00:08]} 4. Bxd7+ {[%emt 0:01:34]} Qxd7 {[%emt 0:00:08]} 5. f4 {[%emt 0:00:25]} g6 {[%emt 0:03:49]} 6. Nf3 {[%emt 0:02:10]} Bg7 {[%emt 0:00:25]} 7. d3 {[%emt 0:00:27]} Nc6 {[%emt 0:00:18]} 8. Be3 {[%emt 0:02:06]} f5 {[%emt 0:08:56]} 9. d4 {[%emt 0:13:25]} cxd4 {[%emt 0:00:30]} 10. Nxd4 {[%emt 0:00:30]} Nf6 {[%emt 0:14:57]} 11. Nd5 {[%emt 0:11:24]} Nxd4 {[%emt 0:15:11]} 12. Qxd4 {[%emt 0:03:43]} O-O {[%emt 0:04:39]} 13. exf5 {[%emt 0:06:00]} e6 {[%emt 0:15:20]} 14. fxe6 {[%emt 0:12:40]} Qxe6 {[%emt 0:00:08]} 15. Nc7 {[%emt 0:01:27]} Qf7 {[%emt 0:05:24]} 16. Nxa8 {[%emt 0:07:11]} Ng4 {[%emt 0:03:47]} 17. Qb4 {[%emt 0:03:29]} Nxe3 {[%emt 0:01:01]} 18. Kd2 {[%emt 0:00:25]} Nc4+ {[%emt 0:02:08]} 0-1

[Event "7th Leer Open-A 2024"]
[Site "Leer"]
[Date "2024.10.31"]
[Round "2.50"]
[White "Roth, Thorsten"]
[Black "Braun, Julian"]
[Result "1/2-1/2"]
[ECO "D34"]
[WhiteElo "1980"]
[BlackElo "1851"]
[Annotator "RC"]
[PlyCount "124"]
[EventDate "2024.10.14"]
[EventType "swiss"]
[EventCountry "GER"]
[SourceTitle "playchess.com"]
[Source "ChessBase"]
[SourceQuality "1"]
[TimeControl "40/5400+30:900+30"]

1. d4 {[%emt 0:00:05]} Nf6 {[%emt 0:00:00]} 2. c4 {[%emt 0:00:18]} e6 {[%emt 0:00:02]} 3. g3 {[%emt 0:00:19]} d5 {[%emt 0:00:16]} 4. Bg2 {[%emt 0:00:09]} c5 {[%emt 0:00:56]} 5. cxd5 {[%emt 0:00:42]} exd5 {[%emt 0:00:59]} 6. Nf3 {[%emt 0:00:07]} Nc6 {[%emt 0:00:10]} 7. O-O {[%emt 0:00:47]} cxd4 {[%emt 0:05:49]} 8. Nxd4 {[%emt 0:00:36]} Be7 {[%emt 0:00:24]} 9. Nc3 {[%emt 0:00:20]} O-O {[%emt 0:01:00]} 10. h3 {[%emt 0:06:53]} Qb6 {[%emt 0:06:29]} 11. Nxc6 {[%emt 0:10:39]} bxc6 {[%emt 0:00:07]} 12. Qc2 {[%emt 0:05:23]} Ba6 {[%emt 0:10:06]} 13. Rd1 {[%emt 0:02:31]} Rad8 {[%emt 0:04:04]} 14. Be3 {[%emt 0:08:12]} Qb7 {[%emt 0:13:12]} 15. Rac1 {[%emt 0:07:56]} Rfe8 {[%emt 0:02:13]} 16. Bf3 {[%emt 0:01:16]} Nd7 {[%emt 0:04:53]} 17. Bd4 {[%emt 0:11:33]} Bf6 {[%emt 0:01:44]} 18. Bxf6 {[%emt 0:02:03]} Nxf6 {[%emt 0:02:09]} 19. Na4 {[%emt 0:01:13]} Nd7 {[%emt 0:11:37]} 20. b3 {[%emt 0:06:08]} Ne5 {[%emt 0:04:09]} 21. Bg2 {[%emt 0:00:28]} Qe7 {[%emt 0:02:56]} 22. Nc5 {[%emt 0:12:24]} Bc8 {[%emt 0:02:38]} 23. Rd4 {[%emt 0:12:48]} Qf6 {[%emt 0:01:50]} 24. Rf4 {[%emt 0:02:57]} Qg6 {[%emt 0:00:39]} 25. e3 {[%emt 0:00:10]} Qxc2 {[%emt 0:04:13]} 26. Rxc2 {[%emt 0:00:02]} g6 {[%emt 0:00:42]} 27. Ra4 {[%emt 0:00:23]} Re7 {[%emt 0:00:29]} 28. Rc3 {[%emt 0:05:25]} f5 {[%emt 0:03:53]} 29. Nd3 {[%emt 0:00:55]} Nxd3 {[%emt 0:01:05]} 30. Rxd3 {[%emt 0:00:05]} Kf7 {[%emt 0:00:29]} 31. Rc3 {[%emt 0:00:29]} Rc7 {[%emt 0:00:52]} 32. Ra5 {[%emt 0:00:57]} Ke6 {[%emt 0:01:16]} 33. Kf1 {[%emt 0:00:51]} Kd6 {[%emt 0:06:27]} 34. b4 {[%emt 0:00:04]} Be6 {[%emt 0:00:53]} 35. Ra6 {[%emt 0:01:11]} Rb8 {[%emt 0:00:45]} 36. a3 {[%emt 0:00:26]} Rb6 {[%emt 0:01:50]} 37. Ra5 {[%emt 0:00:08]} Rb5 {[%emt 0:01:43]} 38. Rxb5 {[%emt 0:01:17]} cxb5 {[%emt 0:00:01]} 39. Rxc7 {[%emt 0:00:10]} Kxc7 {[%emt 0:00:02]} 40. Ke2 {[%emt 0:02:10]} Kd6 {[%emt 0:01:21]} 41. Kd3 {[%emt 0:13:36]} Bd7 {[%emt 0:17:07]} 42. Kd4 {[%emt 0:02:24]} Bc6 43. h4 {[%emt 0:00:00]} h5 {[%emt 0:00:00]} 44. Bf3 {[%emt 0:00:00]} Bb7 {[%emt 0:00:00]} 45. Be2 {[%emt 0:00:00]} Bc6 {[%emt 0:00:00]} 46. Bd3 {[%emt 0:00:00]} Be8 {[%emt 0:00:00]} 47. Bc2 {[%emt 0:00:00]} Bc6 {[%emt 0:00:00]} 48. Bb3 {[%emt 0:00:00]} Bb7 {[%emt 0:00:00]} 49. f3 {[%emt 0:00:00]} Bc6 {[%emt 0:02:23]} 50. Bd1 {[%emt 0:00:34]} Bd7 {[%emt 0:02:02]} 51. Be2 {[%emt 0:00:35]} a6 {[%emt 0:02:31]} 52. Bf1 {[%emt 0:01:00]} Be8 {[%emt 0:01:08]} 53. Bd3 {[%emt 0:01:14]} Bc6 {[%emt 0:01:05]} 54. Bc2 {[%emt 0:00:55]} Bb7 {[%emt 0:00:59]} 55. Bd1 {[%emt 0:01:41]} Bc8 {[%emt 0:00:57]} 56. Be2 {[%emt 0:00:54]} Bd7 {[%emt 0:00:37]} 57. Bd3 {[%emt 0:00:33]} Be6 {[%emt 0:00:38]} 58. e4 {[%emt 0:00:31]} dxe4 {[%emt 0:00:33]} 59. fxe4 {[%emt 0:00:30]} fxe4 60. Bxe4 Bf5 {[%emt 0:01:03]} 61. Bxf5 gxf5 {[%emt 0:00:30]} 62. Ke3 {[%emt 0:01:33]} Ke5 {[%emt 0:00:34]} 1/2-1/2

[Event "7th Leer Open-A 2024"]
[Site "Leer"]
[Date "2024.10.31"]
[Round "2.51"]
[White "Vollmer, Andreas"]
[Black "Hans, Julian"]
[Result "0-1"]
[ECO "D13"]
[WhiteElo "1857"]
[BlackElo "1969"]
[Annotator "RC"]
[PlyCount "68"]
[EventDate "2024.10.14"]
[EventType "swiss"]
[EventCountry "GER"]
[SourceTitle "playchess.com"]
[Source "ChessBase"]
[SourceQuality "1"]
[TimeControl "40/5400+30:900+30"]

1. c4 {[%emt 1:31:00]} c6 {[%emt 0:02:57]} 2. Nc3 {[%emt 0:00:00]} d5 {[%emt 0:00:46]} 3. cxd5 {[%emt 0:00:00]} cxd5 {[%emt 0:00:06]} 4. d4 {[%emt 0:00:00]} Nf6 {[%emt 0:00:09]} 5. Nf3 {[%emt 0:00:00]} Nc6 {[%emt 0:00:32]} 6. e3 {[%emt 0:00:00]} Bg4 {[%emt 0:02:06]} 7. Be2 {[%emt 0:00:00]} e6 {[%emt 0:01:21]} 8. h3 {[%emt 0:00:00]} Bh5 {[%emt 0:00:15]} 9. a3 {[%emt 0:00:00]} Be7 {[%emt 0:02:00]} 10. b4 {[%emt 0:00:00]} Rc8 {[%emt 0:01:50]} 11. Bd2 {[%emt 0:00:00]} O-O {[%emt 0:01:05]} 12. O-O {[%emt 0:00:00]} Bd6 {[%emt 0:02:31]} 13. Na4 {[%emt 0:00:00]} Bb8 {[%emt 0:03:24]} 14. b5 {[%emt 0:00:00]} Bxf3 {[%emt 0:07:45]} 15. Bxf3 {[%emt 0:00:00]} Na5 {[%emt 0:00:32]} 16. Bb4 {[%emt 0:00:00]} Re8 {[%emt 0:02:21]} 17. Qe2 {[%emt 0:00:00]} Nc4 {[%emt 0:04:59]} 18. Nc5 {[%emt 0:00:00]} Qb6 {[%emt 0:13:51]} 19. a4 {[%emt 0:00:00]} a5 {[%emt 0:03:01]} 20. Ba3 {[%emt 0:00:00]} Nxa3 {[%emt 0:01:31]} 21. Rxa3 {[%emt 0:00:00]} Qd6 {[%emt 0:00:40]} 22. g3 {[%emt 0:00:00]} b6 {[%emt 0:00:14]} 23. Rb3 {[%emt 0:00:00]} bxc5 {[%emt 0:00:16]} 24. dxc5 {[%emt 0:00:00]} Rxc5 {[%emt 0:00:18]} 25. Qd2 {[%emt 0:00:00]} Bc7 {[%emt 0:03:16]} 26. Be2 {[%emt 0:00:00]} Bb6 {[%emt 0:00:16]} 27. Bd3 {[%emt 0:00:00]} Rec8 {[%emt 0:01:04]} 28. Kg2 {[%emt 0:00:00]} Qe5 {[%emt 0:04:20]} 29. f4 {[%emt 0:00:00]} Qc7 {[%emt 0:00:18]} 30. Kf3 {[%emt 0:00:00]} Rc3 {[%emt 0:02:33]} 31. Rb2 {[%emt 0:00:00]} Ne4 {[%emt 0:01:52]} 32. Qd1 {[%emt 0:00:00]} Nc5 {[%emt 0:01:20]} 33. Bc2 {[%emt 0:00:00]} Rxe3+ {[%emt 0:03:01]} 34. Kg4 {[%emt 0:00:00]} f5+ {[%emt 0:00:41]} 0-1

[Event "7th Leer Open-A 2024"]
[Site "Leer"]
[Date "2024.10.31"]
[Round "2.52"]
[White "Schoene, Finn"]
[Black "Bundan, Edward"]
[Result "1-0"]
[ECO "B13"]
[WhiteElo "1847"]
[BlackElo "1952"]
[Annotator "RC"]
[PlyCount "71"]
[EventDate "2024.10.14"]
[EventType "swiss"]
[EventCountry "GER"]
[SourceTitle "playchess.com"]
[Source "ChessBase"]
[SourceQuality "1"]
[TimeControl "40/5400+30:900+30"]

1. d4 {[%emt 0:00:03]} Nf6 {[%emt 0:00:11]} 2. Nc3 {[%emt 0:00:08]} d5 {[%emt 0:00:05]} 3. Bf4 {[%emt 0:00:04]} c5 {[%emt 0:00:34]} 4. e3 {[%emt 0:00:06]} cxd4 {[%emt 0:00:22]} 5. exd4 {[%emt 0:00:01]} a6 {[%emt 0:03:19]} 6. Nf3 {[%emt 0:00:10]} e6 {[%emt 0:00:54]} 7. Ne5 {[%emt 0:00:12]} Nc6 {[%emt 0:01:00]} 8. Nxc6 {[%emt 0:00:06]} bxc6 {[%emt 0:00:12]} 9. Na4 {[%emt 0:00:08]} c5 {[%emt 0:20:32]} 10. Nxc5 {[%emt 0:00:08]} Bxc5 {[%emt 0:02:10]} 11. dxc5 {[%emt 0:00:07]} Qa5+ {[%emt 0:00:13]} 12. c3 {[%emt 0:00:05]} Qxc5 {[%emt 0:00:26]} 13. Bd3 {[%emt 1:35:42]} Bb7 {[%emt 0:08:40]} 14. O-O {[%emt 0:00:00]} O-O {[%emt 0:00:33]} 15. Be5 {[%emt 0:00:00]} Nd7 {[%emt 0:07:23]} 16. Bd4 {[%emt 0:00:00]} Qd6 {[%emt 0:04:08]} 17. Qh5 {[%emt 0:00:00]} g6 {[%emt 0:02:07]} 18. Qh4 {[%emt 0:00:00]} e5 {[%emt 0:01:44]} 19. Be3 {[%emt 0:00:00]} f5 {[%emt 0:01:41]} 20. Bh6 {[%emt 0:00:00]} Rf7 {[%emt 0:01:01]} 21. Bc2 {[%emt 0:00:00]} Rc8 {[%emt 0:05:21]} 22. Rad1 {[%emt 0:00:00]} Nb6 {[%emt 0:04:17]} 23. Bb3 {[%emt 0:00:00]} Qe6 {[%emt 0:06:51]} 24. Rfe1 {[%emt 0:00:00]} e4 {[%emt 0:04:19]} 25. Rd4 {[%emt 0:00:00]} Rd7 {[%emt 0:08:19]} 26. f3 {[%emt 0:00:00]} Nc4 {[%emt 0:01:52]} 27. Red1 {[%emt 0:00:00]} exf3 {[%emt 0:03:14]} 28. Re1 {[%emt 0:00:00]} Qf7 {[%emt 0:04:59]} 29. gxf3 {[%emt 0:00:00]} Nb6 {[%emt 0:05:44]} 30. Rb4 {[%emt 0:08:30]} Rc6 {[%emt 0:01:31]} 31. Qd4 {[%emt 0:00:00]} Re6 {[%emt 0:01:42]} 32. Rxe6 {[%emt 0:00:00]} Qxe6 {[%emt 0:00:04]} 33. Rxb6 {[%emt 0:00:00]} Qe1+ {[%emt 0:00:12]} 34. Kg2 {[%emt 0:00:00]} Qe2+ {[%emt 0:00:47]} 35. Qf2 {[%emt 0:00:00]} Qe5 {[%emt 0:00:17]} 36. Qe3 {[%emt 0:00:00]} 1-0